Cogmind - Beta 13 @@@ ROGUE MODE // 2024.05.13 @ 19:35:35 Player: CanadianCogs Result: Destroyed by Y-45 Defender with Beam Rifle Performance ------------- Evolutions (1) 500 Regions Visited (4) 800 Robots Destroyed (8) 40 Value Destroyed (102) 102 Prototype IDs (2) 40 Alien Tech Used (0) 0 Bonus (0) 0 TOTAL SCORE: 1482 Bonus ------- None Cogmind --------- Core Integrity 0/400 Matter 180/300 Energy 100/100 System Corruption 0% Temperature Cool (15) Movement Core (50) Location -9/Storage Parts ------- > --- POWER (1) -------- (None) > --- PROPULSION (4) --- (None) > --- UTILITY (2) ------ (None) > --- WEAPON (2) ------- Minigun > --- INVENTORY (5) ---- Light Assault Rifle Light Assault Rifle Katana Peak State ------------ > --- POWER ------------ Nuclear Core > --- PROPULSION ------- Flight Unit Flight Unit > --- UTILITY ---------- Seismic Detector > --- WEAPON ----------- Minigun > --- INVENTORY -------- Light Assault Rifle Light Assault Rifle Grenade Launcher Katana [Rating: 9] Favorites ----------- Power Light Ion Engine Engine Light Ion Engine Power Core Nuclear Core Propulsion Compact Wheel Wheel Compact Wheel Flight Unit Flight Unit Utility Small Storage Unit Device Seismic Detector Storage Small Storage Unit Weapon Light Assault Rifle Ballistic Gun Light Assault Rifle Launcher Grenade Launcher Slashing Weapon Katana Build | -11 -10 -10 -9 -9 ------- Run | Yrd Mat Min Mat Sto Slots Evolved 2 | . . . 2 . Power . | . . . . . Propulsion 2 | . . . 2 . Utility . | . . . . . Weapon . | . . . . . Parts Attached 17 | 7 . 6 2 2 Power 2 | 1 . 1 . . Engine 1 | 1 . . . . Core 1 | . . 1 . . Reactor . | . . . . . Propulsion 6 | 2 . 4 . . Treads . | . . . . . Leg . | . . . . . Wheel 3 | 2 . 1 . . Hover . | . . . . . Flight 3 | . . 3 . . Utility 2 | 2 . . . . Device 1 | 1 . . . . Storage 1 | 1 . . . . Processor . | . . . . . Hackware . | . . . . . Protection . | . . . . . Artifact . | . . . . . Weapon 7 | 2 . 1 2 2 Energy Gun . | . . . . . Energy Cannon . | . . . . . Ballistic Gun 5 | 2 . 1 1 1 Ballistic Cannon . | . . . . . Launcher 1 | . . . . 1 Special Weapon . | . . . . . Impact Weapon . | . . . . . Slashing Weapon 1 | . . . 1 . Piercing Weapon . | . . . . . Special Melee Weapon . | . . . . . Unidentified Prototypes . | . . . . . Parts Lost 4 | . . . 3 1 Power . | . . . . . Propulsion 2 | . . . 2 . Utility 1 | . . . 1 . Weapon 1 | . . . . 1 Highest Loss Streak 3 | . . . 3 1 To Critical Strikes 1 | . . . 1 . Average Slot Usage (%) 80 | . 100 94 27 11 Engine 10 | . 14 12 . . Core 1 | . . 1 7 . Wheel 20 | . 28 24 . . Flight 3 | . . 3 14 . Device 11 | . 14 14 5 . Storage 10 | . 14 12 . . Ballistic Gun 20 | . 28 24 . . Launcher 1 | . . . . 11 Naked Turns 25 | . . . 24 1 Heaviest Build 11 | 11 11 11 11 3 Greatest Support 32 | 32 32 32 8 3 Greatest Overweight (x) 1 | . . . 1 . Average Overweight (x) . | . . . . . Largest Inventory Capacity 8 | 8 8 8 5 5 Average Capacity 7 | 7 8 7 5 5 Most Carried 7 | 2 3 7 5 4 Average Carried 4 | . 2 6 4 3 Final Capacity 8 | 8 8 5 5 5 Final Carried 5 | 1 3 5 5 3 Class Distribution -------------------- 100% | Mutant Dominant Class ---------------- Mutant | -10/Materials Mutant | -10/Mines Mutant | -9/Materials Mutant | -9/Storage Resources | -11 -10 -10 -9 -9 ----------- Run | Yrd Mat Min Mat Sto Matter Collected 316 | 294 . 22 . . Remotely . | . . . . . Salvage Created 217 | 147 . 50 . 20 Parts 18 | 12 . 4 . 2 Haulers Intercepted . | . . . . . Recyclers Shooed . | . . . . . Parts Field Recycled . | . . . . . Retrieved Matter . | . . . . . Parts Self-Destructed . | . . . . . Prevented . | . . . . . Kills | -11 -10 -10 -9 -9 ------- Run | Yrd Mat Min Mat Sto Combat Hostiles Destroyed 4 | . . 3 . 1 Guns 3 | . . 3 . . AOE 1 | . . . . 1 Classes Destroyed 4 | 2 . 1 . 1 Tunneler 3 | 3 . . . . Recycler 1 | 1 . . . . Swarmer 3 | . . 3 . . Sentry 1 | . . . . 1 Best Kill Streak 3 | 3 . 3 . 1 Combat Bots Only 3 | . . 3 . 1 Max Kills in Single Turn 1 | 1 . 1 . 1 Gunslinging . | . . . . . Exploded 1 | . . . . 1 Melee . | . . . . . Uniques/NPCs Destroyed . | . . . . . Combat | -11 -10 -10 -9 -9 -------- Run | Yrd Mat Min Mat Sto Hostile Shots Fired 109 | . 2 39 48 20 Missed 30 | . 1 11 10 8 Damage Taken 846 | . 10 260 419 157 Core 489 | . . 82 337 70 Absorbed by Shields . | . . . . . Core Remaining (%) 83 | 100 . 67 . . Volleys Fired 31 | 12 . 11 1 7 Largest 2 | 2 . 2 1 1 Hottest 40 | 40 . 40 25 30 Shots Fired 54 | 24 . 22 1 7 Gun 50 | 24 . 22 1 3 Cannon . | . . . . . Launcher 4 | . . . . 4 Special . | . . . . . Kinetic 50 | 24 . 22 1 3 Thermal . | . . . . . Explosive 4 | . . . . 4 Electromagnetic . | . . . . . Robot Hit Streak 5 | 5 . 3 3 5 Robot Miss Streak 6 | 4 . 6 . 1 Penetration Max . | . . . . . Secondary Targets 2 | . . 2 . . Max Gunslinging Chain 1 | . . 1 . . Shots Hit Robots 31 | 15 . 9 2 5 Core Hits 14 | 8 . 3 . 3 Critical Kills 1 | . . 1 . . Critical Parts Destroyed . | . . . . . Critical Strikes 1 | . . 1 . . Destroy 1 | . . 1 . . Melee Attacks 1 | . . . 1 . Impact . | . . . . . Slashing 1 | . . . 1 . Piercing . | . . . . . Sneak Attacks 1 | . . . 1 . Combat Hostiles . | . . . . . Follow-up Attacks . | . . . . . Damage Inflicted 417 | 125 . 70 113 109 Guns 244 | 125 . 70 18 31 Cannons . | . . . . . Explosions 78 | . . . . 78 Melee 70 | . . . 70 . Ramming 25 | . . . 25 . Kinetic 244 | 125 . 70 18 31 Thermal . | . . . . . Explosive 78 | . . . . 78 Electromagnetic . | . . . . . Impact . | . . . . . Slashing 70 | . . . 70 . Piercing . | . . . . . Highest Corruption . | . . . . . Average Corruption . | . . . . . Corruption Purged . | . . . . . Corruption Blocked . | . . . . . Overload Shots . | . . . . . Overflow Damage . | . . . . . Projectiles . | . . . . . Explosions . | . . . . . Melee . | . . . . . Knockbacks . | . . . . . Impact . | . . . . . Kinetic . | . . . . . Secondary . | . . . . . Self-Inflicted Damage 11 | . . . 11 . Shots . | . . . . . Rammed 5 | . . . 5 . Targets Rammed 5 | . . . 5 . Kicked . | . . . . . Crushed . | . . . . . Highest Temperature 11 | . . . 6 11 Average Temperature 6 | . . . 4 8 Received Heat Transfer 258 | . 6 . 189 63 Siege Activations . | . . . . . Robots Corrupted . | . . . . . Combat Hostiles . | . . . . . Parts Fried . | . . . . . Impact Corruptions . | . . . . . Robots Melted . | . . . . . Combat Hostiles . | . . . . . Parts Melted . | . . . . . Heat Transferred . | . . . . . Parts Sabotaged . | . . . . . Parts Stolen . | . . . . . Parts Stripped . | . . . . . Power Chain Reactions . | . . . . . Alert | -11 -10 -10 -9 -9 ------- Run | Yrd Mat Min Mat Sto Peak Influence 156 | 20 48 103 107 156 Initial 42 | . 13 18 39 42 Average 63 | 7 32 97 54 98 Maximum Alert Level . | . . . . . Low Security (%) 100 | 100 100 100 100 100 Level 1 . | . . . . . Level 2 . | . . . . . Level 3 . | . . . . . Level 4 . | . . . . . Level 5 . | . . . . . High Security . | . . . . . Max Security . | . . . . . Squads Dispatched 7 | . 1 . 3 3 Investigation 6 | . 1 . 2 3 Extermination . | . . . . . Reinforcement 1 | . . . 1 . Assault . | . . . . . Garrison . | . . . . . Intercept . | . . . . . Searches Triggered . | . . . . . Construction Impeded . | . . . . . Haulers Reinforced . | . . . . . Active Scanning Responses . | . . . . . Cargo Convoy Interrupts . | . . . . . Stealth | -11 -10 -10 -9 -9 --------- Run | Yrd Mat Min Mat Sto Distress Signals 2 | . . . 2 . Communications Jammed . | . . . . . Distress Signals . | . . . . . Times Spotted 30 | . 1 3 20 6 Peak Tracking Total 16 | . 2 3 16 7 Tactical Retreats 1 | . . . 1 . Traps | -11 -10 -10 -9 -9 ------- Run | Yrd Mat Min Mat Sto Traps Triggered 2 | . . 1 . 1 Indirectly . | . . . . . Trap Hack Attempts . | . . . . . Triggered . | . . . . . Disarmed . | . . . . . Reprogrammed . | . . . . . Reused . | . . . . . Traps Extracted . | . . . . . Installed . | . . . . . Triggered . | . . . . . Machines | -11 -10 -10 -9 -9 ---------- Run | Yrd Mat Min Mat Sto Machines Disabled . | . . . . . Max in Single Turn . | . . . . . Machines Repaired . | . . . . . Machines Dismantled . | . . . . . Machines Sabotaged . | . . . . . Overloaded Fab Kills . | . . . . . Hacking | -11 -10 -10 -9 -9 --------- Run | Yrd Mat Min Mat Sto Machines Accessed 7 | . 2 1 2 2 Terminals 4 | . 1 . 2 1 Fabricators . | . . . . . Repair Stations . | . . . . . Recycling Units 2 | . 1 . . 1 Scanalyzers . | . . . . . Garrison Access . | . . . . . Total Hacks 19 | . 5 1 6 7 Successful 11 | . 3 1 3 4 Failed 8 | . 2 . 3 3 Catastrophic 1 | . . . . 1 Database Lockouts . | . . . . . Manual 12 | . 4 . 3 5 Terminals 12 | . 3 . 6 3 Fabricators . | . . . . . Repair Stations . | . . . . . Recycling Units 6 | . 2 . . 4 Scanalyzers . | . . . . . Garrison Access . | . . . . . Terminal Hacks 4 | . . 1 2 1 Prototype ID Bank 1 | . . . . 1 Open Door 1 | . . 1 . . Branch Access Points 1 | . . . 1 . Zone Layout 1 | . . . 1 . Fabricator Hacks . | . . . . . Repair Station Hacks . | . . . . . Recycling Unit Hacks 2 | . 1 . . 1 Report Inventory 2 | . 1 . . 1 Scanalyzer . | . . . . . Garrison Access Hacks . | . . . . . Unauthorized Hacks 5 | . 2 . 1 2 Terminals 2 | . 1 . 1 . Track 1 | . . . 1 . Botnet 1 | . 1 . . . Fabricators . | . . . . . Repair Stations . | . . . . . Recycling Units 3 | . 1 . . 2 Reject 1 | . . . . 1 Tunnel 2 | . 1 . . 1 Scanalyzers . | . . . . . Garrison Access . | . . . . . Data Cores Recovered . | . . . . . Used . | . . . . . Hacking Detections 5 | . 1 . 2 2 Full Trace Events 4 | . 1 . 2 1 Feedback Events . | . . . . . Feedback Blocked . | . . . . . Robot Schematics Acquired . | . . . . . Robots Built . | . . . . . Authchips . | . . . . . Time . | . . . . . Total Robot Build Rating . | . . . . . Part Schematics Acquired . | . . . . . Parts Built . | . . . . . Authchips . | . . . . . Time . | . . . . . Total Part Build Rating . | . . . . . Parts Repaired . | . . . . . Time . | . . . . . Parts Recycled . | . . . . . Recycled Matter . | . . . . . Retrieved Matter . | . . . . . Retrieved Components . | . . . . . Parts Scanalyzed . | . . . . . Part Schematics Acquired . | . . . . . Parts Damaged . | . . . . . Bothacking | -11 -10 -10 -9 -9 ------------ Run | Yrd Mat Min Mat Sto Used RIF Installer . | . . . . . Robots Hacked . | . . . . . Non-combat . | . . . . . Combat . | . . . . . Robot Hacks Applied . | . . . . . Relay Couplers Released . | . . . . . Fabnet Peak Effective % . | . . . . . Robots Rewired . | . . . . . Allies Hacked . | . . . . . Hacks Repelled . | . . . . . Allies | -11 -10 -10 -9 -9 -------- Run | Yrd Mat Min Mat Sto Total Allies 3 | . . 3 . . Largest Group 3 | . . 3 1 . Highest-Rated Group 40 | . . 40 16 . Highest-Rated Ally 16 | . . 16 16 . Total Orders . | . . . . . Ally Attacks 5 | . . . 5 . Total Damage 75 | . . . 75 . Kills 1 | . . . 1 . Allies Corrupted . | . . . . . Allies Melted . | . . . . . Intel | -11 -10 -10 -9 -9 ------- Run | Yrd Mat Min Mat Sto Robot Analysis Total . | . . . . . Derelict Logs Recovered 1 | . . 1 . . Drone Launches . | . . . . . Drone Recoveries . | . . . . . Exploration | -11 -10 -10 -9 -9 ------------- Run | Yrd Mat Min Mat Sto Turns Passed 656 | 125 124 293 66 48 Spaces Moved 569 | 76 116 214 111 52 Core 87 | 2 . . 33 52 Treads . | . . . . . Legs . | . . . . . Wheels 380 | 74 116 190 . . Hover . | . . . . . Flight 102 | . . 24 78 . Fastest Speed 37 | 50 100 37 37 50 Average Speed 81 | 98 100 92 44 50 Slowest Speed 117 | 100 100 100 117 50 Overloaded Moves . | . . . . . Propulsion Burnouts . | . . . . . Robots Hopped . | . . . . . Cave-ins Triggered . | . . . . . Exploration Rate (%) 19 | 5 18 37 20 15 Regions Visited 4 Branch Regions 2 Pre-discovered Areas 2 | . 1 . . 1 Known Exits Taken 1 | . . . 1 . Unknown Exits Taken 3 | 1 1 1 . . Scrap Searched 1 | . . 1 . . Spaces Dug . | . . . . . Terrain Destroyed 20 | . . . . 20 Melee . | . . . . . Projectile . | . . . . . AOE 20 | . . . . 20 Terrain Rammed . | . . . . . Walls Destroyed . | . . . . . Machines Disabled . | . . . . . Actions | -11 -10 -10 -9 -9 --------- Run | Yrd Mat Min Mat Sto Total 716 | 106 124 292 126 68 Wait 69 | 4 7 47 4 7 Move 565 | 75 115 213 110 52 Hop . | . . . . . Pick Up 16 | 8 2 6 . . Fast Attach . | . . . . . Attach 12 | 7 . 1 2 2 Detach 3 | . . 1 2 . Swap 5 | . . 5 . . Drop 9 | . . 8 1 . Fire 31 | 12 . 11 1 7 Melee 1 | . . . 1 . Ram 5 | . . . 5 . Kick . | . . . . . Crush . | . . . . . Escape Stasis . | . . . . . Rewire . | . . . . . Trap . | . . . . . Miscellaneous . | . . . . . Route ------- -11/Scrapyard -10/Materials -10/Mines -9/Materials (discovered 4 exits: [*Mat] / Min / *Sto x2) -9/Storage History --------- Turn | Location | Event 16 | -11/Scrapyard | Discovered new exit (range 16) 126 | -11/Scrapyard | Entered Materials 147 | -10/Materials | Discovered new exit (range 15) 250 | -10/Materials | Entered Mines 254 | -10/Mines | Met a Derelict bent on vengeance 306 | -10/Mines | Build established: Mutant 357 | -10/Mines | Learned Materials trap positions 457 | -10/Mines | Assisted by bots powering up and referring to "LRC-V3" 498 | -10/Mines | Met a Derelict who couldn't figure out how to use a Trap Extractor 521 | -10/Mines | Discovered new exit (range 10) 543 | -10/Mines | Entered Materials 543 | -9/Materials | Accompanied by 1 ally 543 | -9/Materials | Evolved 2 slots: Propulsion x2 544 | -9/Materials | Loaded intel: 20 trap records 568 | -9/Materials | Identified exit to Mines 568 | -9/Materials | Identified exit to Storage 583 | -9/Materials | Discovered new exit (range 16) 590 | -9/Materials | Core integrity fell below 50% 609 | -9/Materials | Entered Storage 610 | -9/Storage | Core integrity fell below 20% 616 | -9/Storage | Lost 3 parts (2n1u) 657 | -9/Storage | Destroyed by Y-45 Defender with Beam Rifle Last Messages --------------- Inventory: Empty >>Trojan(Reject) Trojan loaded successfully. Testing... Ejection routine running. >>Force(Tunnel) DISCOVERED[-4/Factory] 00623_ ALERT: Suspicious activity at Recycling Unit S002. Dispatching Investigation squad. 00626_ Connecting with Terminal... >>Prototypes Downloading prototype IDs... Hvy. Ion Engine Cld. Ion Engine 00626_ ALERT: Suspicious activity at Terminal S008. Dispatching Investigation squad. 00634_ K-01 Serf collects debris. 00641_ Y-45 Defender destroyed. 00644_ K-01 Serf collects debris. 00651_ Grenade Launcher destroyed. Map ----- +----------------------------------------------------+ | ??????# #????????????????????????? | | ??????# #????????????????????????? | | ??????# #????????????????????????? | | ??????# #????????????????????????? | | ??????# #????????????????????????? | | ??????# #????????????????????????? | | ??????# #????????????????????????? | | ??????# #????????????????????????? | | ??????# ######???????????????????? | | ####??# ##"""#???????????????????? | | # ??# ##"Y"#####???????????????? | | # ?# # #???????????????? | | # ?# # #???????????????? | | # """ # # """ #???????????????? | | # """ # # """ ##??????????????? | | # """ + + """ "#??????????????? | | # # # """ T#??????????????? | | # """ # # """ "#??????????????? | | # """?# # ##??????????????? | | # """?# # #???????????????? | | ? ??# ##########???????????????? | | ? ! ??# ##############???????????? | | ?##???# # ]]] * #???????????? | | ??????# # ]]] #???????????? | | ??????# # ]]] #???????????? | | ??????# /@ g #???????????? | | ??????# # Y g g #??????????? | | ??????# ###" "####g###???????????? | | ??????# #??"R"#??????????????????? | | ????? ???""#??????????????????? | | ????# ????##??????????????????? | | ???? ! ????????????????????????? | | ???## % ????????????????????????? | | ????# ????????????????????????? | | ???? ????????????????????????? | | ???# ????????????????????????? | | ???## ????????????????????????? | | ????" """ ????????????????????????? | | ????? """ ????????????????????????? | | ?????????? ????????????????????????? | | ???????????????????????????????????? | | ???????????????????????????????????? | | ???????????????????????????????????? | | ???????????????????????????????????? | | ???????????????????????????????????? | | ???????????????????????????????????? | | ???????????????????????????????????? | | ???????????????????????????????????? | | ???????????????????????????????????? | | ???????????????????????????????????? | +----------------------------------------------------+ Best States ------------- Heat Dissipation 28 Energy Generation 14 Energy Capacity 240 Matter Stores 300 Matter Capacity 300 Sight Range 16 Terrain Scan Density 10 Evasion (%) 62 Item Schematics ----------------- None Robot Schematics ------------------ None Fabricated ------------ Nothing Alien Tech Used ----------------- None Achievements -------------- None Challenges ------------ None Game ------ Seed MagneticSiegePit Manual? 0 Play Time 00:14:24 Cumulative 24.8 hours Start 2024.05.13 @ 19:14:18 End 2024.05.13 @ 19:35:35 Sessions 1 Manual Loads 0 Difficulty Rogue Special Mode None Game No. 39 Rogue 39 Adventurer 0 Explorer 0 Win Type - Total 0 Types 0/0/0/0/0/0/0/0/0 Lore% 18 Gallery% 24 Achievement% 23 Wizard Run 0 Options --------- Layout 0 ASCII 0 Keyboard 0 Movement Mouse Keybinds 0 Fullscreen 2 Font 18/SmallcapsGlow Map View 38x25 Zoom Use 94% Tactical HUD 1 Map Filters NONE Filters NONE Steam 1 RUN: 9469d654-cdb2-4a9f-b3b3-8efa11d9c817